Cogmind - Beta 13 @@@ ROGUE MODE // 2024.04.08 @ 00:33:30 Player: BoomBlip Result: Destroyed by S-10 Pest with Light Assault Rifle Performance ------------- Evolutions (1) 500 Regions Visited (4) 800 Robots Destroyed (57) 285 Value Destroyed (1541) 1541 Prototype IDs (1) 20 Alien Tech Used (0) 0 Bonus (137) 137 TOTAL SCORE: 3283 Bonus ------- High Alert Combat Kills 46 Follower Combat Kills 247 Entered Garrisons 200 Friendly Fire -356 Cogmind --------- Core Integrity 0/400 Matter 226/300 Energy 87/250 System Corruption 16% Temperature Cool (0) Movement Walking (120) Location -9/Garrison Parts ------- > --- POWER (1) -------- Ion Engine > --- PROPULSION (3) --- Aluminum Leg Aluminum Leg Aluminum Leg > --- UTILITY (3) ------ Heat Sink (fused) Heat Sink Heat Sink > --- WEAPON (2) ------- Heavy Assault Rifle Improved Assault Rifle > --- INVENTORY (5) ---- EM Shotgun Beam Rifle Heavy Assault Rifle Shotgun Peak State ------------ > --- POWER ------------ Improved Ion Engine > --- PROPULSION ------- Wheel Wheel Wheel > --- UTILITY ---------- Heat Sink Small Storage Unit Medium Armor Plating > --- WEAPON ----------- Heavy Assault Rifle Improved Assault Rifle > --- INVENTORY -------- Ion Engine EM Shotgun EM Shotgun Beam Rifle Heavy Assault Rifle Shotgun Improved Light Cannon [Rating: 15] Favorites ----------- Power Light Nuclear Core Engine Improved Ion Engine Power Core Light Nuclear Core Propulsion Wheel Leg Aluminum Leg Wheel Wheel Utility Small Storage Unit Device Heat Sink Storage Small Storage Unit Protection Utility Shielding Weapon Heavy Assault Rifle Energy Gun Beam Rifle Energy Cannon Light EM Pulse Cannon Ballistic Gun Heavy Assault Rifle Ballistic Cannon Improved Light Cannon Launcher Rocket Launcher Special Weapon Welding Torch Impact Weapon Mace Build | -11 -10 -9 -9 -9 ------- Run | Yrd Mat Mat Sto Gar Slots Evolved 2 | . . 2 . . Power . | . . . . . Propulsion 1 | . . 1 . . Utility 1 | . . 1 . . Weapon . | . . . . . Parts Attached 52 | . 12 2 30 8 Power 8 | . 3 . 4 1 Engine 7 | . 2 . 4 1 Core 1 | . 1 . . . Reactor . | . . . . . Propulsion 16 | . 6 1 5 4 Treads . | . . . . . Leg 4 | . . . . 4 Wheel 12 | . 6 1 5 . Hover . | . . . . . Flight . | . . . . . Utility 10 | . 1 1 5 3 Device 3 | . . . 1 2 Storage . | . . . . . Processor . | . . . . . Hackware . | . . . . . Protection 7 | . 1 1 4 1 Artifact . | . . . . . Weapon 18 | . 2 . 16 . Energy Gun 3 | . . . 3 . Energy Cannon 1 | . . . 1 . Ballistic Gun 9 | . 2 . 7 . Ballistic Cannon 1 | . . . 1 . Launcher 1 | . . . 1 . Special Weapon 1 | . . . 1 . Impact Weapon 2 | . . . 2 . Slashing Weapon . | . . . . . Piercing Weapon . | . . . . . Special Melee Weapon . | . . . . . Unidentified Prototypes 1 | . . . 1 . Parts Lost 15 | . 2 . 8 5 Power 2 | . . . 1 1 Propulsion 7 | . 2 . 4 1 Utility 5 | . . . 2 3 Weapon 1 | . . . 1 . Highest Loss Streak 4 | . 2 . 4 2 To Critical Strikes . | . . . . . Average Slot Usage (%) 88 | . 95 96 85 86 Engine 6 | . 5 . 6 11 Core 5 | . 8 11 4 . Leg 2 | . . . . 13 Wheel 21 | . 25 33 21 11 Device 4 | . . . 3 18 Storage 10 | . 14 11 11 1 Protection 14 | . 11 18 17 8 Energy Gun 2 | . . . 4 . Ballistic Gun 19 | . 28 22 14 22 Naked Turns . | . . . . . Heaviest Build 27 | 13 17 20 27 26 Greatest Support 36 | 20 26 30 36 30 Greatest Overweight (x) 2 | . 1 . 2 1 Average Overweight (x) . | . . . . . Largest Inventory Capacity 8 | . 8 8 8 8 Average Capacity 7 | . 8 8 8 5 Most Carried 8 | . 8 8 8 8 Average Carried 7 | . 7 7 7 5 Final Capacity 8 | 8 8 8 8 5 Final Carried 8 | 6 8 8 8 4 Class Distribution -------------------- 43% | Scavenger-Mutant 38% | Mutant 17% | Commander-Mutant Dominant Class ---------------- Mutant | -10/Materials Scavenger-Mutant | -9/Materials Scavenger-Mutant | -9/Storage Scavenger-Mutant | -9/Garrison Resources | -11 -10 -9 -9 -9 ----------- Run | Yrd Mat Mat Sto Gar Matter Collected 1506 | 200 346 77 691 192 Remotely . | . . . . . Salvage Created 2073 | . 502 129 1164 278 Parts 120 | . 36 14 55 15 Haulers Intercepted 2 | . . . 2 . Recyclers Shooed 3 | . 1 . 2 . Parts Field Recycled . | . . . . . Retrieved Matter . | . . . . . Parts Self-Destructed . | . . . . . Prevented . | . . . . . Kills | -11 -10 -9 -9 -9 ------- Run | Yrd Mat Mat Sto Gar Combat Hostiles Destroyed 41 | . 11 5 16 9 Guns 39 | . 11 5 14 9 Cannons 2 | . . . 2 . Classes Destroyed 9 | . 4 2 3 . Worker 4 | . 1 . 3 . Builder 3 | . 1 . 2 . Hauler 2 | . . . 2 . Recycler 2 | . . . 2 . Mechanic 1 | . . . 1 . Watcher 2 | . 2 . . . Swarmer 7 | . . 3 . 4 Grunt 26 | . 11 1 10 4 Sentry 10 | . . 1 8 1 Best Kill Streak 6 | . 5 4 6 4 Combat Bots Only 5 | . 5 4 4 4 Max Kills in Single Turn 2 | . 2 1 2 1 Gunslinging . | . . . . . Exploded . | . . . . . Melee . | . . . . . Uniques/NPCs Destroyed . | . . . . . Combat | -11 -10 -9 -9 -9 -------- Run | Yrd Mat Mat Sto Gar Hostile Shots Fired 223 | . 49 15 79 80 Missed 51 | . 10 7 18 16 Damage Taken 2730 | . 484 63 1505 678 Core 448 | . 47 16 290 95 Absorbed by Shields . | . . . . . Redirected to Shielding 37 | . 15 4 18 . Core Remaining (%) 90 | 100 81 . . . Volleys Fired 170 | . 50 8 81 31 Largest 2 | . 2 2 2 2 Hottest 112 | . 46 46 112 46 Shots Fired 338 | . 100 16 159 63 Gun 316 | . 100 16 137 63 Cannon 15 | . . . 15 . Launcher 6 | . . . 6 . Special 1 | . . . 1 . Kinetic 277 | . 100 16 98 63 Thermal 44 | . . . 44 . Explosive 6 | . . . 6 . Electromagnetic 11 | . . . 11 . Robot Hit Streak 14 | . 12 3 10 14 Robot Miss Streak 5 | . 4 5 4 3 Penetration Max . | . . . . . Secondary Targets 10 | . 3 . 2 5 Max Gunslinging Chain 1 | . 1 . 1 1 Shots Hit Robots 208 | . 63 9 96 40 Core Hits 103 | . 35 7 46 15 Critical Kills 1 | . . 1 . . Critical Parts Destroyed 1 | . . . 1 . Critical Strikes 5 | . . 1 4 . Burn 3 | . . . 3 . Destroy 1 | . . 1 . . Smash 1 | . . . 1 . Melee Attacks 5 | . . . 5 . Impact 5 | . . . 5 . Slashing . | . . . . . Piercing . | . . . . . Sneak Attacks 2 | . . . 2 . Combat Hostiles . | . . . . . Follow-up Attacks . | . . . . . Damage Inflicted 3266 | . 718 116 1789 643 Guns 2762 | . 718 116 1285 643 Cannons 172 | . . . 172 . Explosions 169 | . . . 169 . Melee 163 | . . . 163 . Ramming . | . . . . . Kinetic 2430 | . 718 116 953 643 Thermal 408 | . . . 408 . Explosive 138 | . . . 138 . Electromagnetic 127 | . . . 127 . Impact 163 | . . . 163 . Slashing . | . . . . . Piercing . | . . . . . Highest Corruption 16 | . . . 16 16 Average Corruption 15 | . . . 15 16 Corruption Purged . | . . . . . Corruption Blocked . | . . . . . Effects 28 | . . . 14 14 Message Errors 9 | . . . 6 3 Matter Fused 6 | . . . 3 3 Heat Flow Errors 2 | . . . . 2 Energy Discharges 3 | . . . 1 2 Parts Fused 2 | . . . 2 . Data Loss (minor) 3 | . . . 1 2 Misfires 2 | . . . 1 1 Alerts 1 | . . . . 1 Overload Shots . | . . . . . Overflow Damage 135 | . . . 135 . Projectiles . | . . . . . Explosions 2 | . . . 2 . Melee 133 | . . . 133 . Knockbacks . | . . . . . Impact . | . . . . . Kinetic . | . . . . . Secondary . | . . . . . Self-Inflicted Damage 72 | . . . 72 . Shots 3 | . . . 3 . Rammed . | . . . . . Targets Rammed . | . . . . . Kicked . | . . . . . Crushed . | . . . . . Highest Temperature 287 | . 34 . 287 215 Average Temperature 77 | . 9 . 99 87 Received Heat Transfer 846 | . 270 . 387 189 Siege Activations . | . . . . . Robots Corrupted . | . . . . . Combat Hostiles . | . . . . . Parts Fried 2 | . . . 2 . Impact Corruptions 2 | . . . 2 . Robots Melted . | . . . . . Combat Hostiles . | . . . . . Parts Melted 1 | . . . 1 . Heat Transferred 1211 | . . . 1211 . Parts Sabotaged . | . . . . . Parts Stolen . | . . . . . Parts Stripped . | . . . . . Power Chain Reactions 1 | . . . 1 . Alert | -11 -10 -9 -9 -9 ------- Run | Yrd Mat Mat Sto Gar Peak Influence 531 | . 281 262 526 531 Initial 341 | . . 79 110 341 Average 271 | . 143 156 295 438 Maximum Alert Level 2 | . 1 1 2 2 Low Security (%) 33 | . 71 76 19 . Level 1 49 | . 28 23 65 43 Level 2 17 | . . . 14 56 Level 3 . | . . . . . Level 4 . | . . . . . Level 5 . | . . . . . High Security . | . . . . . Max Security . | . . . . . Squads Dispatched 7 | . 4 1 2 . Investigation 1 | . 1 . . . Extermination . | . . . . . Reinforcement 5 | . 3 1 1 . Assault . | . . . . . Garrison 1 | . . . 1 . Intercept . | . . . . . Searches Triggered . | . . . . . Construction Impeded . | . . . . . Haulers Reinforced . | . . . . . Active Scanning Responses . | . . . . . Cargo Convoy Interrupts . | . . . . . Stealth | -11 -10 -9 -9 -9 --------- Run | Yrd Mat Mat Sto Gar Distress Signals 4 | . 1 1 2 . Communications Jammed . | . . . . . Distress Signals . | . . . . . Times Spotted 77 | . 20 8 33 16 Peak Tracking Total 7 | . 4 4 5 7 Tactical Retreats 1 | . . 1 . . Traps | -11 -10 -9 -9 -9 ------- Run | Yrd Mat Mat Sto Gar Traps Triggered 2 | . 1 . 1 . Indirectly . | . . . . . Trap Hack Attempts . | . . . . . Triggered . | . . . . . Disarmed . | . . . . . Reprogrammed . | . . . . . Reused . | . . . . . Traps Extracted . | . . . . . Installed . | . . . . . Triggered . | . . . . . Machines | -11 -10 -9 -9 -9 ---------- Run | Yrd Mat Mat Sto Gar Machines Disabled 6 | . . . 6 . Max in Single Turn 1 | . . . 1 . Machines Repaired . | . . . . . Machines Dismantled . | . . . . . Machines Sabotaged . | . . . . . Overloaded Fab Kills . | . . . . . Hacking | -11 -10 -9 -9 -9 --------- Run | Yrd Mat Mat Sto Gar Machines Accessed 14 | . 2 1 10 1 Terminals 12 | . 2 1 8 1 Fabricators . | . . . . . Repair Stations 1 | . . . 1 . Recycling Units . | . . . . . Scanalyzers . | . . . . . Garrison Access 1 | . . . 1 . Total Hacks 34 | . 6 4 23 1 Successful 15 | . 2 2 10 1 Failed 19 | . 4 2 13 . Catastrophic 2 | . 1 . 1 . Database Lockouts . | . . . . . Manual 19 | . 6 4 9 . Terminals 30 | . 6 4 19 1 Fabricators . | . . . . . Repair Stations 1 | . . . 1 . Recycling Units . | . . . . . Scanalyzers . | . . . . . Garrison Access 3 | . . . 3 . Terminal Hacks 8 | . . 1 6 1 Open Door 3 | . . . 3 . Branch Access Points 1 | . . 1 . . Emergency Access Points 1 | . . . . 1 Alert Level 1 | . . . 1 . Unreport Threat 1 | . . . 1 . Locate Traps 1 | . . . 1 . Fabricator Hacks . | . . . . . Repair Station Hacks 1 | . . . 1 . Scan Component 1 | . . . 1 . Recycling Unit Hacks . | . . . . . Scanalyzer . | . . . . . Garrison Access Hacks 1 | . . . 1 . Unlock Access 1 | . . . 1 . Unauthorized Hacks 5 | . 2 1 2 . Terminals 5 | . 2 1 2 . Botnet 5 | . 2 1 2 . Fabricators . | . . . . . Repair Stations . | . . . . . Recycling Units . | . . . . . Scanalyzers . | . . . . . Garrison Access . | . . . . . Data Cores Recovered . | . . . . . Used . | . . . . . Hacking Detections 13 | . 2 1 9 1 Full Trace Events 1 | . . . 1 . Feedback Events . | . . . . . Feedback Blocked . | . . . . . Robot Schematics Acquired . | . . . . . Robots Built . | . . . . . Authchips . | . . . . . Time . | . . . . . Total Robot Build Rating . | . . . . . Part Schematics Acquired . | . . . . . Parts Built . | . . . . . Authchips . | . . . . . Time . | . . . . . Total Part Build Rating . | . . . . . Parts Repaired . | . . . . . Time . | . . . . . Parts Recycled . | . . . . . Recycled Matter . | . . . . . Retrieved Matter . | . . . . . Retrieved Components . | . . . . . Parts Scanalyzed . | . . . . . Part Schematics Acquired . | . . . . . Parts Damaged . | . . . . . Bothacking | -11 -10 -9 -9 -9 ------------ Run | Yrd Mat Mat Sto Gar Used RIF Installer . | . . . . . Robots Hacked . | . . . . . Non-combat . | . . . . . Combat . | . . . . . Robot Hacks Applied . | . . . . . Relay Couplers Released . | . . . . . Fabnet Peak Effective % . | . . . . . Robots Rewired . | . . . . . Allies Hacked . | . . . . . Hacks Repelled . | . . . . . Allies | -11 -10 -9 -9 -9 -------- Run | Yrd Mat Mat Sto Gar Total Allies 10 | . . . 10 . Largest Group 10 | . . . 10 3 Highest-Rated Group 88 | . . . 88 30 Highest-Rated Ally 16 | . . . 16 16 Total Orders . | . . . . . Ally Attacks 80 | . . . 52 28 Total Damage 796 | . . . 462 334 Kills 13 | . . . 10 3 Allies Corrupted 1 | . . . 1 . Allies Melted . | . . . . . Intel | -11 -10 -9 -9 -9 ------- Run | Yrd Mat Mat Sto Gar Robot Analysis Total . | . . . . . Derelict Logs Recovered . | . . . . . Drone Launches . | . . . . . Drone Recoveries . | . . . . . Exploration | -11 -10 -9 -9 -9 ------------- Run | Yrd Mat Mat Sto Gar Turns Passed 1810 | . 485 99 911 315 Spaces Moved 1281 | 1 349 82 648 201 Core . | . . . . . Treads . | . . . . . Legs 83 | 1 9 . . 73 Wheels 1198 | . 340 82 648 128 Hover . | . . . . . Flight . | . . . . . Fastest Speed 80 | 120 80 80 80 95 Average Speed 89 | 120 83 80 90 104 Slowest Speed 190 | 120 120 80 115 190 Overloaded Moves . | . . . . . Propulsion Burnouts . | . . . . . Robots Hopped . | . . . . . Cave-ins Triggered 2 | . . . 2 . Exploration Rate (%) 41 | 2 69 14 85 36 Regions Visited 4 Branch Regions 1 Pre-discovered Areas . | . . . . . Known Exits Taken 2 | . . 1 1 . Unknown Exits Taken 2 | 1 1 . . . Scrap Searched . | . . . . . Spaces Dug 33 | . . . 33 . Terrain Destroyed 48 | . . . 48 . Melee . | . . . . . Projectile . | . . . . . AOE 48 | . . . 48 . Terrain Rammed . | . . . . . Walls Destroyed . | . . . . . Machines Disabled . | . . . . . Actions | -11 -10 -9 -9 -9 --------- Run | Yrd Mat Mat Sto Gar Total 1614 | . 452 99 821 242 Wait 43 | . 22 5 16 . Move 1275 | . 348 81 645 201 Hop . | . . . . . Pick Up 24 | . 8 2 14 . Fast Attach 19 | . 2 1 10 6 Attach 8 | . 3 1 3 1 Detach 1 | . . . 1 . Swap 25 | . 7 . 17 1 Drop 42 | . 12 1 27 2 Fire 170 | . 50 8 81 31 Melee 5 | . . . 5 . Ram . | . . . . . Kick . | . . . . . Crush . | . . . . . Escape Stasis 2 | . . . 2 . Rewire . | . . . . . Trap . | . . . . . Miscellaneous . | . . . . . Route ------- -11/Scrapyard -10/Materials (discovered 3 exits: *Mat x3) -9/Materials (discovered 3 exits: Min / *Sto x2) -9/Storage (discovered 2 exits: [*Mat] / Gar) -9/Garrison (discovered 1 exit: [*Rec]) History --------- Turn | Location | Event 1 | -11/Scrapyard | Discovered new exit (range 0) 1 | -11/Scrapyard | Entered Materials 173 | -10/Materials | Discovered new exit (range 8) 318 | -10/Materials | Build established: Mutant 374 | -10/Materials | Discovered new exit (range 16) 470 | -10/Materials | Discovered new exit (range 12) 486 | -10/Materials | Entered another Materials area 486 | -9/Materials | Evolved 2 slots: Propulsion x1, Utility x1 521 | -9/Materials | Identified exit to Mines 521 | -9/Materials | Identified exit to Storage 585 | -9/Materials | Entered Storage 793 | -9/Storage | Build established: Scavenger-Mutant 1028 | -9/Storage | Assisted by bots powering up and referring to "LRC-V3" 1201 | -9/Storage | Crushed by falling debris 1202 | -9/Storage | Core integrity fell below 50% 1202 | -9/Storage | System corruption reached 10% 1217 | -9/Storage | Crushed by falling debris 1248 | -9/Storage | Lost 4 parts (1n2u1w) 1434 | -9/Storage | Garrison activated, responded to threat 1481 | -9/Storage | Discovered new exit (range 15) 1495 | -9/Storage | Identified exit to Garrison 1496 | -9/Storage | Entered Garrison 1496 | -9/Garrison | Accompanied by 3 allies 1534 | -9/Garrison | Triggered checkpoint 1618 | -9/Garrison | Triggered checkpoint 1660 | -9/Garrison | Triggered checkpoint 1663 | -9/Garrison | Core integrity fell below 20% 1716 | -9/Garrison | Triggered checkpoint 1780 | -9/Garrison | Discovered new exit (range 15) 1811 | -9/Garrison | Destroyed by S-10 Pest with Light Assault Rifle Last Messages --------------- 01703_ Acquired Heat Sink. 01711_ System corrupted: Energy discharge (-58). 01716_ Beams of light sweep through the air. An alarm sounds. 01716_ S-10 Pest unfolds itself. 01716_ Trooper 2a destroyed. 01716_ S-10 Pest destroyed. 01716_ Switching to secondary target: S-10 Pest. 01719_ S-10 Pest destroyed. 01719_ Switching to secondary target: S-10 Pest. 01725_ S-10 Pest destroyed. 01725_ Switching to secondary target: S-10 Pest. 01731_ S-10 Pest destroyed. 01732_ System corrupted: Matter fused (-9). 01734_ Acquired 10 matter. 01739_ Acquired 13 matter. 01750_ System corrupted: Matter fused (-7). 01776_ System corrupted: Component data lost. 01780_ EXIT=FOUND 01799_ GWOTYKM14NUWZ V8Z%9RYB|X 7 01810_ Imp. Ion Engine destroyed. Map ----- +----------------------------------------------------+ | ## #???????# #???????????????????????????????? | | =## ##??????# #???????????????????????????????? | | ####+#?# #???????????????????????????????? | | #??????????????+????????????????? | | ??????????????????????????????? | | ## ############??????????????????????????????? | | ## #?????????????????????????????????????????? | | "?????????????????????????????????????????? | | "?????????????????????????????????????????? | | "?????????????????????????????????????????? | | "?????????????????????????????????????????? | | ## #?????????????????????????????????????????? | | ## #?????????????????????????????????????????? | | #?????????????????????????????????????????? | | +?????????????????????????????????????????? | | #?????????????????????????????????????????? | | ## #?????????????????????????????????????????? | | ## #?????????????????????????????????????????? | | ### #?????????????????????????????????????????? | | ??# #???????????????????????#?????????????????? | | ??# #??????????????????????"??????????????????? | | ??# #????????????????????? #??????????????????? | | ??# ###+#############+#### ###########????????? | | ??# #???????? | | ??# #???????? | | ??# s @ #???????? | | ??#######++############ss############